Cogmind - Beta 13 @@@ ROGUE MODE // 2024.05.15 @ 19:00:17 // AFD2019/Pay2Buy Player: boggy Result: Destroyed by G-34 Mercenary with Small Laser Performance ------------- Evolutions (1) 500 Regions Visited (3) 600 Robots Destroyed (15) 75 Value Destroyed (564) 564 Prototype IDs (2) 40 Alien Tech Used (0) 0 Bonus (233) 233 TOTAL SCORE: 2012 Bonus ------- Pacifist 200 Follower Combat Kills 33 Cogmind --------- Core Integrity 0/400 Matter 52/300 Energy 275/275 System Corruption 2% Temperature Cool (12) Movement Rolling (90) Location -9/Storage Parts ------- > --- POWER (1) -------- Deuterium Engine > --- PROPULSION (2) --- Armored Wheel Armored Wheel > --- UTILITY (4) ------ Improved Heat Sink Improved Heat Sink Improved Heat Sink Improved Heat Sink > --- WEAPON (2) ------- Improved Datajack Scythe > --- INVENTORY (10) --- Light Deuterium Engine Improved Hover Unit Aerolev Unit Sensor Array Improved Sensor Array Subdweller Shrapnel Launcher Subdweller Shrapnel Launcher Welding Torch Multitool Peak State ------------ > --- POWER ------------ Deuterium Engine > --- PROPULSION ------- Armored Wheel Armored Wheel > --- UTILITY ---------- Improved Heat Sink Improved Heat Sink Improved Heat Sink Improved Heat Sink > --- WEAPON ----------- Advanced Beam Cannon Heavy Particle Cannon > --- INVENTORY -------- Light Deuterium Engine Improved Hover Unit Aerolev Unit Sensor Array Improved Sensor Array Subdweller Shrapnel Launcher Subdweller Shrapnel Launcher Improved Datajack Welding Torch Multitool [Rating: 27] Favorites ----------- Power Light Ion Engine Engine Light Ion Engine Propulsion Improved Hover Unit Wheel Armored Wheel Hover Unit Improved Hover Unit Utility Improved Heat Sink Device Improved Heat Sink Hackware Hacking Suite Weapon Mining Laser Energy Cannon Advanced Beam Cannon Launcher Subdweller Shrapnel Launcher Special Weapon Mining Laser Slashing Weapon Scythe Special Melee Weapon Improved Datajack Build | -11 -10 -9 -9 ------- Run | Yrd Mat Mat Sto Slots Evolved 2 | . . 2 . Power . | . . . . Propulsion . | . . . . Utility 2 | . . 2 . Weapon . | . . . . Parts Attached 4 | . 1 . 3 Power . | . . . . Engine . | . . . . Core . | . . . . Reactor . | . . . . Propulsion . | . . . . Treads . | . . . . Leg . | . . . . Wheel . | . . . . Hover . | . . . . Flight . | . . . . Utility . | . . . . Device . | . . . . Storage . | . . . . Processor . | . . . . Hackware . | . . . . Protection . | . . . . Artifact . | . . . . Weapon 4 | . 1 . 3 Energy Gun . | . . . . Energy Cannon . | . . . . Ballistic Gun . | . . . . Ballistic Cannon . | . . . . Launcher 1 | . . . 1 Special Weapon 2 | . 1 . 1 Impact Weapon . | . . . . Slashing Weapon . | . . . . Piercing Weapon . | . . . . Special Melee Weapon 1 | . . . 1 Unidentified Prototypes . | . . . . Parts Lost 17 | . 2 . 15 Power 2 | . . . 2 Propulsion 2 | . . . 2 Utility 4 | . . . 4 Weapon 9 | . 2 . 7 Highest Loss Streak 11 | . 2 . 11 To Critical Strikes 1 | . . . 1 Average Slot Usage (%) 82 | . 81 44 84 Engine 11 | . 14 11 10 Wheel 5 | . . . 8 Hover 18 | . 28 22 12 Device 27 | . 20 11 33 Hackware 1 | . . . 3 Energy Cannon 2 | . . . 3 Special Weapon 12 | . 18 . 8 Slashing Weapon 1 | . . . 1 Special Melee Weapon 1 | . . . 2 Naked Turns . | . . . . Heaviest Build 17 | 8 7 5 17 Greatest Support 24 | 14 14 14 24 Greatest Overweight (x) . | . . . . Average Overweight (x) . | . . . . Largest Inventory Capacity 10 | 10 10 10 10 Average Capacity 10 | 10 10 10 10 Most Carried 10 | 3 3 2 10 Average Carried 4 | 1 2 2 6 Final Capacity 10 | 10 10 10 10 Final Carried 9 | 2 2 2 9 Class Distribution -------------------- 100% | Mutant Dominant Class ---------------- Mutant | -10/Materials Mutant | -9/Materials Mutant | -9/Storage Resources | -11 -10 -9 -9 ----------- Run | Yrd Mat Mat Sto Matter Collected 43 | . . . 43 Remotely . | . . . . Salvage Created 456 | . . . 456 Parts . | . . . . Haulers Intercepted . | . . . . Recyclers Shooed . | . . . . Parts Field Recycled . | . . . . Retrieved Matter . | . . . . Parts Self-Destructed . | . . . . Prevented . | . . . . Kills | -11 -10 -9 -9 ------- Run | Yrd Mat Mat Sto Combat Hostiles Destroyed 13 | . . . 13 Melee 2 | . . . 2 Cannons 4 | . . . 4 AOE 6 | . . . 6 Classes Destroyed 5 | . . . 5 Mechanic 2 | . . . 2 Grunt 7 | . . . 7 Brawler 2 | . . . 2 Duelist 1 | . . . 1 Sentry 3 | . . . 3 Best Kill Streak 12 | . . . 12 Combat Bots Only 10 | . . . 10 Max Kills in Single Turn 8 | . . . 8 Gunslinging . | . . . . Exploded 6 | . . . 6 Melee 1 | . . . 1 Uniques/NPCs Destroyed . | . . . . Combat | -11 -10 -9 -9 -------- Run | Yrd Mat Mat Sto Hostile Shots Fired 136 | . 21 . 115 Missed 34 | . 4 . 30 Damage Taken 1565 | . 183 . 1382 Core 441 | . 32 . 409 Absorbed by Shields 112 | . 66 . 46 Core Remaining (%) 93 | 100 87 . . Volleys Fired 41 | . 3 . 38 Largest 2 | . 2 . 2 Hottest 200 | . 200 . 160 Shots Fired 49 | . 5 . 44 Gun . | . . . . Cannon 13 | . . . 13 Launcher 2 | . . . 2 Special 34 | . 5 . 29 Kinetic 2 | . . . 2 Thermal 47 | . 5 . 42 Explosive . | . . . . Electromagnetic . | . . . . Robot Hit Streak 7 | . 1 . 7 Robot Miss Streak 3 | . . . 3 Penetration Max . | . . . . Secondary Targets . | . . . . Shots Hit Robots 34 | . 1 . 33 Core Hits 20 | . . . 20 Critical Kills . | . . . . Critical Parts Destroyed . | . . . . Critical Strikes 6 | . . . 6 Burn 6 | . . . 6 Melee Attacks 13 | . . . 13 Impact . | . . . . Slashing 11 | . . . 11 Piercing . | . . . . Sneak Attacks 2 | . . . 2 Combat Hostiles . | . . . . Follow-up Attacks . | . . . . Damage Inflicted 1380 | . 24 . 1356 Guns . | . . . . Cannons 164 | . . . 164 Explosions 763 | . . . 763 Melee 268 | . . . 268 Ramming 8 | . . . 8 Kinetic 763 | . . . 763 Thermal 341 | . 24 . 317 Explosive . | . . . . Electromagnetic . | . . . . Impact . | . . . . Slashing 268 | . . . 268 Piercing . | . . . . Highest Corruption 2 | . 1 . 2 Average Corruption 1 | . 1 . 1 Corruption Purged . | . . . . Corruption Blocked . | . . . . Effects 3 | . 1 . 2 Message Errors 1 | . . . 1 Matter Fused 2 | . 1 . 1 Overload Shots . | . . . . Overflow Damage 85 | . . . 85 Projectiles . | . . . . Explosions 48 | . . . 48 Melee 37 | . . . 37 Knockbacks . | . . . . Impact . | . . . . Kinetic . | . . . . Secondary . | . . . . Self-Inflicted Damage 90 | . . . 90 Shots 2 | . . . 2 Rammed 1 | . . . 1 Targets Rammed 1 | . . . 1 Kicked . | . . . . Crushed . | . . . . Highest Temperature 505 | . 126 . 505 Average Temperature 208 | . 53 . 278 Received Heat Transfer 545 | . 70 . 475 Effects 8 | . . . 8 Shutdowns 1 | . . . 1 Energy Bleed 1 | . . . 1 Matter Decay 2 | . . . 2 Damage (minor) 3 | . . . 3 Damage (core) 1 | . . . 1 Siege Activations . | . . . . Robots Corrupted . | . . . . Combat Hostiles . | . . . . Parts Fried . | . . . . Impact Corruptions . | . . . . Robots Melted 1 | . . . 1 Combat Hostiles 1 | . . . 1 Parts Melted . | . . . . Heat Transferred 2396 | . 50 . 2346 Parts Sabotaged . | . . . . Parts Stolen . | . . . . Parts Stripped . | . . . . Power Chain Reactions . | . . . . Alert | -11 -10 -9 -9 ------- Run | Yrd Mat Mat Sto Peak Influence 292 | . 122 66 292 Initial 51 | . . 51 27 Average 104 | . 54 56 146 Maximum Alert Level 1 | . . . 1 Low Security (%) 72 | 100 100 100 52 Level 1 27 | . . . 47 Level 2 . | . . . . Level 3 . | . . . . Level 4 . | . . . . Level 5 . | . . . . High Security . | . . . . Max Security . | . . . . Squads Dispatched 4 | . 1 . 3 Investigation . | . . . . Extermination . | . . . . Reinforcement 2 | . 1 . 1 Assault 2 | . . . 2 Garrison . | . . . . Intercept . | . . . . Searches Triggered . | . . . . Construction Impeded 1 | . . . 1 Haulers Reinforced . | . . . . Active Scanning Responses . | . . . . Cargo Convoy Interrupts . | . . . . Stealth | -11 -10 -9 -9 --------- Run | Yrd Mat Mat Sto Distress Signals 4 | . 1 . 3 Communications Jammed . | . . . . Distress Signals . | . . . . Times Spotted 36 | . 12 1 23 Peak Tracking Total 10 | . 7 1 10 Tactical Retreats 5 | . 4 . 1 Traps | -11 -10 -9 -9 ------- Run | Yrd Mat Mat Sto Traps Triggered 2 | . 1 . 1 Indirectly . | . . . . Trap Hack Attempts . | . . . . Triggered . | . . . . Disarmed . | . . . . Reprogrammed . | . . . . Reused . | . . . . Traps Extracted . | . . . . Installed . | . . . . Triggered . | . . . . Machines | -11 -10 -9 -9 ---------- Run | Yrd Mat Mat Sto Machines Disabled 2 | . . . 2 Max in Single Turn 1 | . . . 1 Machines Repaired . | . . . . Machines Dismantled . | . . . . Machines Sabotaged . | . . . . Overloaded Fab Kills . | . . . . Hacking | -11 -10 -9 -9 --------- Run | Yrd Mat Mat Sto Machines Accessed 1 | . 1 . . Terminals 1 | . 1 . . Fabricators . | . . . . Repair Stations . | . . . . Recycling Units . | . . . . Scanalyzers . | . . . . Garrison Access . | . . . . Total Hacks 2 | . 2 . . Successful 1 | . 1 . . Failed 1 | . 1 . . Catastrophic . | . . . . Database Lockouts . | . . . . Manual 1 | . . . 1 Terminals 2 | . 2 . . Fabricators . | . . . . Repair Stations . | . . . . Recycling Units . | . . . . Scanalyzers . | . . . . Garrison Access . | . . . . Terminal Hacks 1 | . 1 . . Zone Layout 1 | . 1 . . Fabricator Hacks . | . . . . Repair Station Hacks . | . . . . Recycling Unit Hacks . | . . . . Scanalyzer . | . . . . Garrison Access Hacks . | . . . . Unauthorized Hacks . | . . . . Terminals . | . . . . Fabricators . | . . . . Repair Stations . | . . . . Recycling Units . | . . . . Scanalyzers . | . . . . Garrison Access . | . . . . Data Cores Recovered . | . . . . Used . | . . . . Hacking Detections . | . . . . Full Trace Events . | . . . . Feedback Events . | . . . . Feedback Blocked . | . . . . Robot Schematics Acquired . | . . . . Robots Built . | . . . . Authchips . | . . . . Time . | . . . . Total Robot Build Rating . | . . . . Part Schematics Acquired . | . . . . Parts Built . | . . . . Authchips . | . . . . Time . | . . . . Total Part Build Rating . | . . . . Parts Repaired . | . . . . Time . | . . . . Parts Recycled . | . . . . Recycled Matter . | . . . . Retrieved Matter . | . . . . Retrieved Components . | . . . . Parts Scanalyzed . | . . . . Part Schematics Acquired . | . . . . Parts Damaged . | . . . . Bothacking | -11 -10 -9 -9 ------------ Run | Yrd Mat Mat Sto Used RIF Installer . | . . . . Robots Hacked 1 | . . . 1 Non-combat 1 | . . . 1 Combat . | . . . . Robot Hacks Applied 1 | . . . 1 no_distress 1 | . . . 1 Relay Couplers Released . | . . . . Fabnet Peak Effective % . | . . . . Robots Rewired . | . . . . Allies Hacked . | . . . . Hacks Repelled . | . . . . Allies | -11 -10 -9 -9 -------- Run | Yrd Mat Mat Sto Total Allies 2 | . . . 2 Largest Group 2 | . . . 2 Highest-Rated Group 62 | . . . 62 Highest-Rated Ally 31 | . . . 31 Total Orders . | . . . . Ally Attacks 9 | . . . 9 Total Damage 84 | . . . 84 Kills 1 | . . . 1 Allies Corrupted . | . . . . Allies Melted . | . . . . Intel | -11 -10 -9 -9 ------- Run | Yrd Mat Mat Sto Robot Analysis Total . | . . . . Derelict Logs Recovered . | . . . . Drone Launches . | . . . . Drone Recoveries . | . . . . Exploration | -11 -10 -9 -9 ------------- Run | Yrd Mat Mat Sto Turns Passed 429 | 15 163 8 243 Spaces Moved 391 | 24 257 15 95 Core . | . . . . Treads . | . . . . Legs . | . . . . Wheels 5 | . . . 5 Hover 386 | 24 257 15 90 Flight . | . . . . Fastest Speed 46 | 56 56 56 46 Average Speed 54 | 56 56 56 48 Slowest Speed 90 | 56 56 56 90 Overloaded Moves . | . . . . Propulsion Burnouts . | . . . . Robots Hopped . | . . . . Cave-ins Triggered . | . . . . Exploration Rate (%) 19 | 3 44 3 27 Regions Visited 3 Branch Regions 1 Pre-discovered Areas . | . . . . Known Exits Taken . | . . . . Unknown Exits Taken 3 | 1 1 1 . Scrap Searched . | . . . . Spaces Dug 3 | . 3 . . Terrain Destroyed 26 | . 3 . 23 Melee . | . . . . Projectile 3 | . 3 . . AOE 23 | . . . 23 Terrain Rammed . | . . . . Walls Destroyed . | . . . . Machines Disabled . | . . . . Actions | -11 -10 -9 -9 --------- Run | Yrd Mat Mat Sto Total 510 | 27 261 14 208 Wait 35 | . . . 35 Move 388 | 23 256 14 95 Hop . | . . . . Pick Up . | . . . . Fast Attach . | . . . . Attach 4 | . 1 . 3 Detach 14 | 1 1 . 12 Swap . | . . . . Drop 10 | 3 . . 7 Fire 41 | . 3 . 38 Melee 13 | . . . 13 Ram 1 | . . . 1 Kick . | . . . . Crush . | . . . . Escape Stasis . | . . . . Rewire . | . . . . Trap . | . . . . Miscellaneous 4 | . . . 4 Route ------- -11/Scrapyard -10/Materials -9/Materials -9/Storage History --------- Turn | Location | Event 6 | -11/Scrapyard | Discovered new exit (range 12) 16 | -11/Scrapyard | Entered Materials 171 | -10/Materials | Discovered new exit (range 15) 179 | -10/Materials | Entered another Materials area 179 | -9/Materials | Evolved 2 slots: Utility x2 179 | -9/Materials | Discovered new exit (range 15) 187 | -9/Materials | Entered Storage 207 | -9/Storage | Met a pair of Derelict thieves 219 | -9/Storage | Lost 3 parts (1p1n1u) 308 | -9/Storage | Build established: Mutant 310 | -9/Storage | Core integrity fell below 50% 352 | -9/Storage | Lost 11 parts (1p1n3u6w) 357 | -9/Storage | Destroyed 10 combat bots 387 | -9/Storage | Core integrity fell below 20% 430 | -9/Storage | Destroyed by G-34 Mercenary with Small Laser Last Messages --------------- >>no_distress Distress signal routine blocked. 00397_ U-05 Engineer lays Concrete. 00398_ Jacked G-34 Mercenary... 00399_ U-05 Engineer builds a Wall. [Purchased: Scythe] 00399_ Acquired 11 matter. 00403_ Acquired 32 matter. 00404_ Sneak attack on U-05 Engineer. 00404_ Destroyed Wheel. 00404_ ALERT: Construction progress impeded, dispatching reinforcements to local area. 00404_ U-05 Engineer distress signal failed. 00412_ W-16 Scout sends out distress signal. 00416_ Destroyed Hover Unit. 00419_ G-34 Mercenary destroyed. 00421_ Destroyed Sml. Laser. [DISCOUNT: For the next 141 turns enjoy 50% off any Treads!] 00427_ B-36 Bruiser destroyed. 00429_ U-05 Engineer lays Concrete. Map ----- +----------------------------------------------------+ | | | | | | | | | | | | | | | | | | | | | | | | | ?????????????############?????????????????? | | ?????????????# ?????????????????? | | ?????????????# """ T?????????????????? | | ?????????????# """ ? ????????????????? | | ??????######## """ #??????????????? | | ??????# + #???????????????? | | ??????# ###+###+###??????????????????? | | ??##### ### #######??????????????? | | ??# # ?????????????? | | ??# u # "??????????????? | | ??# ######### # ""?????????????? | | ??# #????"###%% # ""?????????????? | | ??# #????"%% %% # ""?????????????? | | ??# #????" @ # ????????????? | | ??# #????"# ###%g# ????????????? | | ??# #????####"# g# ?????????????? | | ??# ##?????? " ##+#####?????????????? | | ??# T#??????? # % ???????????????????? | | ??## ##??????? # g ?????????????????? | | ???# #?????????#? ### #???????????????? | | ???# #??????????? #??? #???????????????? | | ???# #??????????? #????+???????????????? | | ???# #????????????#????????????????????? | | ???# #?????????????????????????????????? | | ???# #?????????????????????????????????? | | ???# #?????????????????????????????????? | | ???# #?????????????????????????????????? | | ???# #?????????????????????????????????? | | ???# #?????????????????????????????????? | | ???# ##+#######???????????????????????????? | | ???# # #???????????????????????????? | | ???# # """ #???????????????????????????? | | ???# # """ #???????????????????????????? | | ???# # """ #???????????????????????????? | | ???# # #???????????????????????????? | | ???# # """ #???????????????????????????? | | ???? # """ #???????????????????????????? | | ???? # """ #???????????????????????????? | +----------------------------------------------------+ Best States ------------- Heat Dissipation 84 Energy Generation 14 Energy Capacity 275 Matter Stores 102 Matter Capacity 300 Sight Range 16 Robot Scan Range 15 Terrain Scan Density 10 ECM Strength 1 Evasion (%) 55 Offensive Hacking 10 Item Schematics ----------------- None Robot Schematics ------------------ None Fabricated ------------ Nothing Alien Tech Used ----------------- None Achievements -------------- None Challenges ------------ None Cogshop Purchases (46) ------------------------ Lgt. Ion Engine (599) Imp. Hover Unit (874) Imp. Hover Unit (874) Mining Laser (599) Mining Laser (599) Mining Laser (599) Mining Laser (599) Mining Laser (599) Mining Laser (599) Shield Generator (699) Sensor Array (599) Lgt. Deuterium Engine (755) Aerolev Unit (1108) Aerolev Unit (1108) Imp. Datajack (773) Hardlight Generator (843) Imp. Sensor Array (843) ECM Suite (632) ECM Suite (632) ECM Suite (632) ECM Suite (632) ECM Suite (632) ECM Suite (632) Multitool (1003) Hacking Suite (1069) Enh. Flamer (1059) Enh. Flamer (1059) Shield Generator (2419) Enh. Flamer (1059) Deuterium Engine (707) Enh. Flamer (1639) Enh. Flamer (1639) Sub. Shrapnel Launcher (872) Sub. Shrapnel Launcher (872) Adv. Beam Cannon (731) Deuterium Engine (797) Imp. Heat Sink (3051) Imp. Heat Sink (3051) Imp. Heat Sink (3051) Imp. Heat Sink (3051) Arm. Wheel (675) Arm. Wheel (675) Welding Torch (1229) Mining Laser (1229) Hvy. Particle Cannon (835) Scythe (1052) Game ------ Seed OpticalLightningCapacitor Manual? 0 Play Time 00:15:45 Cumulative 38.0 hours Start 2024.05.15 @ 18:46:05 End 2024.05.15 @ 19:00:17 Sessions 1 Manual Loads 0 Difficulty Rogue Special Mode AFD2019/Pay2Buy Game No. 39 Rogue 39 Adventurer 0 Explorer 0 Win Type - Total 1 Types 1/0/0/0/0/0/0/0/0 Lore% 28 Gallery% 30 Achievement% 40 Wizard Run 0 Options --------- Layout 0 ASCII 0 Keyboard 0 Movement Mouse Keybinds 0 Fullscreen 2 Font 14/SmallcapsGlow Map View 36x27 Zoom Use 99% Tactical HUD 1 Map Filters NONE Filters NONE Steam 1 RUN: 244e8c73-6dcd-45c9-891c-bc975987cfa7